bitfinex/quotes_BTCUSD_20260311
["timestamp","ask_amount","ask_price","bid_price","bid_amount"]
[1773241865349,0.001,70382.0,70367.0,0.04960657]
[1773241865544,0.04914273,70384.0,70367.0,0.00148]
[1773241865947,0.14333393,70385.0,70368.0,0.04812657]
[1773241866147,0.00148,70385.0,70368.0,0.04812657]
[1773241866358,0.07103793,70385.0,70367.0,0.00148]
[1773241866723,0.04914273,70384.0,70363.0,0.07125958]
[1773241866843,0.04914273,70384.0,70363.0,0.0002]
[1773241866844,0.04914273,70382.0,70363.0,0.0002]
[1773241867897,0.12726881,70380.0,70353.0,0.0002]
[1773241868054,0.04914273,70378.0,70349.0,0.00148]
[1773241868256,0.04914273,70376.0,70347.0,0.00148]
[1773241868669,0.04914273,70376.0,70346.0,0.000278]
[1773241868876,0.04914273,70369.0,70346.0,0.000278]
[1773241869231,0.04914273,70367.0,70346.0,0.000278]
[1773241869410,0.04914273,70365.0,70342.0,0.17939285]
[1773241869631,0.04914273,70363.0,70337.0,0.07108567]
[1773241869828,0.07104795,70375.0,70320.0,0.35482245]
[1773241869829,0.04914273,70349.0,70320.0,0.35482245]
[1773241870037,0.04914273,70347.0,70326.0,1e-08]
[1773241870230,0.04914273,70339.0,70315.0,0.000278]
[1773241870427,0.04914273,70337.0,70315.0,0.000278]
[1773241870673,0.04914273,70337.0,70304.0,0.00048]
[1773241870881,0.04914273,70335.0,70304.0,0.07159922]
[1773241872192,0.12726881,70330.0,70290.0,0.0002]
[1773241872393,0.07256735,70336.0,70259.0,0.29146329]
[1773241872394,0.0002,70286.0,70277.0,0.0001692]
[1773241872550,0.0002,70286.0,70264.0,0.33958986]
[1773241872551,0.00148,70285.0,70264.0,0.29146329]
[1773241872890,0.07113994,70284.0,70262.0,0.00144]
[1773241873090,0.12028267,70284.0,70260.0,0.07260424]
[1773241873317,0.04914273,70283.0,70260.0,0.07260424]
[1773241873619,0.00148,70282.0,70260.0,0.07260424]
[1773241873829,0.00148,70282.0,70255.0,0.29146329]
[1773241873830,0.12726881,70280.0,70244.0,0.01124]
[1773241874036,0.04914273,70269.0,70250.0,1e-08]
[1773241874215,0.04914273,70267.0,70244.0,1e-08]
[1773241874977,0.04914273,70265.0,70244.0,1e-08]
[1773241875190,0.04914273,70265.0,70244.0,0.00083521]
[1773241875380,0.04914273,70264.0,70244.0,0.00083521]
[1773241875590,0.00148,70263.0,70244.0,0.00083521]
[1773241875870,0.04914273,70262.0,70244.0,0.00083521]
[1773241876251,0.04914273,70262.0,70236.0,0.00213825]
[1773241876389,0.00148,70261.0,70236.0,0.00213825]
[1773241876589,0.04914273,70260.0,70236.0,0.00213825]
[1773241876901,0.07116627,70258.0,70236.0,0.07332637]
[1773241877106,0.04914273,70249.0,70229.0,0.0004383]
[1773241877298,0.00148,70248.0,70212.0,0.07265289]
[1773241877518,0.04914273,70247.0,70212.0,0.07265289]
[1773241877654,0.04914273,70247.0,70212.0,0.12077946]
[1773241877856,0.03234816,70257.0,70212.0,0.12077946]
[1773241878154,0.03234816,70252.0,70212.0,0.12077946]
[1773241878377,0.04914273,70251.0,70212.0,0.07291749]
[1773241878579,0.04914273,70249.0,70212.0,0.0017046]
[1773241879105,0.05062273,70248.0,70212.0,0.07291648]
[1773241879309,0.05062273,70248.0,70212.0,0.0017046]
[1773241879837,0.05062273,70248.0,70212.0,0.07291693]
[1773241880312,0.00148,70247.0,70212.0,0.07291693]
[1773241880512,0.00148,70246.0,70213.0,0.04832932]
[1773241880675,0.01604985,70248.0,70213.0,0.04832932]
[1773241880876,0.00148,70247.0,70214.0,0.07121086]
[1773241881097,0.00148,70247.0,70215.0,0.04832932]
[1773241881274,0.01752985,70248.0,70215.0,0.04832932]
[1773241881683,0.00148,70247.0,70215.0,0.04832932]
[1773241881970,0.00148,70256.0,70221.0,0.04832932]
[1773241882169,0.00148,70258.0,70223.0,0.04832932]
[1773241882496,0.11626823,70268.0,70223.0,0.04832932]
[1773241882654,0.00148,70267.0,70223.0,0.04832932]
[1773241882856,0.00148,70266.0,70232.0,0.04832932]
[1773241883082,0.00294761,70269.0,70234.0,0.04832932]
[1773241883274,0.00294761,70269.0,70241.0,0.04832932]
[1773241883486,0.00294761,70269.0,70243.0,0.04832932]
[1773241883679,0.00294761,70269.0,70245.0,0.04832932]
[1773241884000,0.071145,70279.0,70247.0,0.04832932]
[1773241884201,0.11625582,70280.0,70248.0,0.00144]
[1773241884415,0.11625582,70280.0,70249.0,0.04832932]
[1773241884629,0.00148,70282.0,70249.0,0.04832932]
[1773241884763,0.00148,70281.0,70251.0,0.04832932]
[1773241884968,0.00148,70280.0,70253.0,0.04832932]
[1773241885347,0.07113691,70287.0,70261.0,0.28041872]
[1773241885348,0.00148,70287.0,70261.0,0.28041872]
[1773241885555,0.04511117,70296.0,70263.0,0.04832932]
[1773241885732,0.00148,70291.0,70263.0,0.04832932]
[1773241886271,0.04511117,70296.0,70263.0,0.04832932]
[1773241886471,0.00091169,70300.0,70271.0,0.04832932]
[1773241886679,0.00091169,70300.0,70261.0,0.28041872]
[1773241886680,0.07203568,70300.0,70265.0,0.04832932]
[1773241886882,0.07203568,70300.0,70266.0,0.00144]
[1773241886883,0.04511117,70299.0,70266.0,0.00144]
[1773241887037,0.07112577,70298.0,70266.0,0.07115817]
[1773241887244,0.07112577,70298.0,70267.0,0.00144]
[1773241887245,0.04659117,70297.0,70267.0,0.00144]
[1773241887649,0.00148,70296.0,70268.0,0.04832932]
[1773241888383,0.00091169,70300.0,70268.0,0.04832932]
[1773241888556,0.00148,70298.0,70271.0,0.04832932]
[1773241889482,0.00091169,70300.0,70273.0,0.04832932]
[1773241889678,0.00048,70304.0,70273.0,0.04832932]
[1773241890258,0.00048,70304.0,70275.0,0.04832932]
[1773241890842,0.00148,70308.0,70275.0,0.04832932]
[1773241891246,0.00148,70308.0,70276.0,0.07114804]
[1773241891247,0.07259583,70308.0,70276.0,0.07114804]
[1773241891471,0.117707,70308.0,70277.0,0.00148]
[1773241891794,0.04511117,70307.0,70278.0,0.00148]
[1773241892065,0.0019012,70309.0,70279.0,0.04832932]
[1773241892253,0.07301599,70309.0,70279.0,0.04832932]
[1773241893091,0.07301599,70309.0,70278.0,0.00148]
[1773241893313,0.07111667,70307.0,70280.0,0.07114399]
[1773241893490,0.04511117,70306.0,70280.0,0.07114399]
[1773241894829,0.00148,70305.0,70280.0,0.07114399]
[1773241895030,0.04511117,70306.0,70280.0,0.07114399]
[1773241895207,0.00148,70305.0,70280.0,0.07114399]
[1773241895790,0.0711197,70304.0,70281.0,0.04832932]
[1773241896224,0.07111893,70305.0,70281.0,0.04832932]
[1773241896384,0.00022001,70307.0,70281.0,0.04832932]
[1773241896584,0.00148,70306.0,70281.0,0.04832932]
[1773241896821,0.00148,70306.0,70281.0,0.04632932]
[1773241897286,0.14087211,70305.0,70281.0,0.04632932]
[1773241897493,0.07133679,70307.0,70281.0,0.04632932]
[1773241897494,0.14087211,70304.0,70281.0,0.04632932]
[1773241897728,0.14087211,70306.0,70281.0,0.04632932]
[1773241897930,0.14087211,70305.0,70283.0,0.04832932]
[1773241898243,0.14087211,70304.0,70283.0,0.04832932]
[1773241898442,0.00022001,70307.0,70283.0,0.04832932]
[1773241899099,0.14087211,70306.0,70283.0,0.04832932]
[1773241899299,0.14087211,70305.0,70283.0,0.04832932]
[1773241899514,0.0004212,70309.0,70285.0,0.04832932]
[1773241899730,0.00022001,70315.0,70285.0,0.04832932]
[1773241900075,0.00022001,70315.0,70287.0,0.04832932]
[1773241900844,0.07132883,70315.0,70287.0,0.04832932]
[1773241901260,0.00022001,70315.0,70287.0,0.04832932]
[1773241902069,0.00022001,70315.0,70288.0,0.07113589]
[1773241902276,0.00022001,70315.0,70289.0,0.04531563]
[1773241903059,0.07132874,70315.0,70289.0,0.04531563]
[1773241903293,0.00022001,70315.0,70289.0,0.04531563]
[1773241903909,0.07132868,70315.0,70289.0,0.04531563]
[1773241904257,0.07132868,70315.0,70285.0,0.07113792]
[1773241904258,0.12726881,70310.0,70274.0,0.29673971]
[1773241904477,0.03447664,70309.0,70285.0,0.001]
[1773241904648,0.00144,70308.0,70286.0,0.00148]
[1773241905811,0.03433532,70307.0,70286.0,0.00148]
[1773241906010,0.03433532,70307.0,70288.0,0.001]
[1773241906353,0.07111768,70306.0,70288.0,0.001]
[1773241906604,0.07255768,70306.0,70288.0,0.07213537]
[1773241906801,0.07255768,70306.0,70288.0,0.07213578]
[1773241906923,0.07255768,70306.0,70288.0,0.001]
[1773241907807,0.07255768,70306.0,70287.0,0.04531563]
[1773241908008,0.07255768,70306.0,70289.0,0.001]
[1773241908797,0.07255768,70306.0,70287.0,0.11645252]
[1773241909132,0.07111768,70306.0,70287.0,0.07113689]
[1773241909338,0.00144,70305.0,70288.0,0.04531563]
[1773241910564,0.0711197,70304.0,70288.0,0.04531563]
[1773241911336,0.07111462,70311.0,70288.0,0.11645142]
[1773241911478,0.07132185,70322.0,70291.0,0.08392183]
[1773241911679,0.00022001,70322.0,70291.0,0.08392183]
[1773241912667,0.00022001,70322.0,70293.0,0.08377273]
[1773241912864,0.01076424,70326.0,70301.0,0.08377273]
[1773241913068,0.00144,70338.0,70301.0,0.08377273]
[1773241913285,0.07108328,70341.0,70303.0,0.08377273]
[1773241913286,0.00144,70337.0,70303.0,0.08377273]
[1773241913691,0.00142182,70332.0,70304.0,0.00148]
[1773241913893,0.00142182,70332.0,70305.0,0.00148]
[1773241914065,0.00144,70331.0,70306.0,0.00148]
[1773241914264,0.00144,70330.0,70308.0,0.08362437]
[1773241914516,0.00144,70329.0,70309.0,0.00148]
[1773241914770,0.07109543,70328.0,70306.0,0.00148]
[1773241914951,0.00144,70327.0,70307.0,0.00148]
[1773241915157,0.00144,70326.0,70303.0,0.07112072]
[1773241915334,0.00144,70326.0,70308.0,0.00148]
[1773241915540,0.00144,70326.0,70305.0,0.00148]
[1773241915741,0.00144,70326.0,70304.0,0.00148]
[1773241916727,0.07109749,70326.0,70305.0,0.07111869]
[1773241916932,0.21200949,70328.0,70306.0,0.08397484]
[1773241917150,0.00148,70326.0,70306.0,0.08397484]
[1773241917770,0.14095599,70331.0,70306.0,0.08397484]
[1773241917970,0.07399328,70332.0,70306.0,0.08397484]
[1773241918134,0.00290182,70332.0,70306.0,0.08397484]
[1773241918327,0.00142182,70332.0,70306.0,0.08397484]
[1773241918756,0.00142182,70332.0,70308.0,0.08383538]
[1773241919823,0.00148,70346.0,70311.0,0.08369088]
[1773241920101,0.07255525,70348.0,70313.0,0.08369088]
[1773241920476,0.07176234,70347.0,70313.0,0.08369088]
[1773241920650,0.07176234,70347.0,70314.0,0.07110959]
[1773241920869,0.07176234,70347.0,70315.0,0.08369088]
[1773241921074,0.00148,70346.0,70316.0,0.00148]
[1773241921269,0.14105034,70345.0,70315.0,0.00148]
[1773241921517,0.14105034,70344.0,70313.0,0.00148]
[1773241921721,0.14105034,70345.0,70314.0,0.08369088]
[1773241921919,0.00148,70344.0,70314.0,0.08369088]
[1773241922550,0.00022001,70332.0,70314.0,0.08369088]
[1773241922727,0.00022001,70332.0,70315.0,0.00148]
[1773241922935,0.00022001,70332.0,70312.0,0.12160148]
[1773241923139,0.00022001,70332.0,70317.0,0.12160148]
[1773241923338,0.00022001,70332.0,70319.0,0.12160148]
[1773241923558,0.00022001,70332.0,70321.0,0.12160148]
[1773241923735,0.00022001,70332.0,70321.0,0.12308148]
[1773241924159,0.00022001,70332.0,70307.0,0.07111661]
[1773241924160,0.0713122,70332.0,70313.0,0.00148]
[1773241924670,0.07273402,70332.0,70307.0,0.19271809]
[1773241924872,0.07273402,70332.0,70315.0,0.07110858]
[1773241925036,0.00164183,70332.0,70315.0,0.07110858]
[1773241925236,0.21544207,70332.0,70315.0,0.07110858]
[1773241925460,0.07421349,70332.0,70314.0,0.00148]
[1773241925656,0.07421349,70332.0,70314.0,0.07258897]
[1773241925657,0.00312183,70332.0,70314.0,0.07258897]
[1773241925828,0.00312183,70332.0,70314.0,0.07258954]
[1773241925829,0.0742134,70332.0,70314.0,0.07258954]
[1773241926222,0.0742134,70332.0,70306.0,0.001]
[1773241926546,0.12726881,70330.0,70295.0,0.00148]
[1773241926748,0.07109442,70329.0,70295.0,0.00148]
[1773241926946,0.21231782,70329.0,70291.0,0.07261286]
[1773241927150,0.1334393,70319.0,70291.0,0.00148]
[1773241927376,0.00148,70318.0,70291.0,0.00148]
[1773241927575,0.00148,70318.0,70291.0,0.07261286]
[1773241927782,0.00148,70318.0,70291.0,0.07113286]
[1773241928120,0.00148,70318.0,70291.0,0.07261286]
[1773241928466,0.00148,70318.0,70284.0,0.0711395]
[1773241928467,0.12726881,70310.0,70279.0,0.00148]
[1773241928604,0.00148,70309.0,70279.0,0.00148]
[1773241928812,0.07111566,70308.0,70280.0,0.07134354]
[1773241929018,0.14130844,70307.0,70280.0,0.07134354]
[1773241929333,0.14130844,70307.0,70281.0,0.08315676]
[1773241929537,0.00148,70308.0,70280.0,0.07134354]
[1773241929538,0.00148,70308.0,70306.0,0.001]
[1773241929711,0.00148,70308.0,70288.0,0.00148]
[1773241929913,0.00148,70308.0,70289.0,0.00148]
[1773241930730,0.07111667,70307.0,70289.0,0.00148]
[1773241931701,0.07111667,70307.0,70281.0,0.00148]
[1773241931904,0.00148,70306.0,70281.0,0.00148]
[1773241932105,0.00148,70306.0,70282.0,0.08311583]
[1773241932553,0.07111667,70307.0,70282.0,0.08311583]
[1773241932753,0.00148,70306.0,70282.0,0.08311583]
[1773241933478,0.00164183,70332.0,70291.0,0.08311583]
[1773241933695,0.00164183,70332.0,70299.0,0.08311583]
[1773241934255,0.00164183,70332.0,70301.0,0.08443175]
[1773241934611,0.00164183,70332.0,70303.0,0.08443175]
[1773241934734,0.00144,70331.0,70305.0,0.08443175]
[1773241934938,0.00144,70331.0,70307.0,0.08443175]
[1773241935285,0.00144,70331.0,70311.0,0.08443175]
[1773241935481,0.07253241,70331.0,70311.0,0.08443175]
[1773241936368,0.07253241,70331.0,70308.0,0.07111566]
[1773241936574,0.07253241,70331.0,70312.0,0.00148]
[1773241937006,0.07253241,70331.0,70299.0,0.07112407]
[1773241937007,0.07253241,70331.0,70305.0,0.00148]
[1773241937144,0.07253241,70331.0,70304.0,0.00148]
[1773241937388,0.07253241,70331.0,70297.0,0.00148]
[1773241937389,0.001,70307.0,70297.0,0.00148]
[1773241937593,0.001,70307.0,70298.0,0.00148]
[1773241937841,0.00144,70314.0,70298.0,0.00148]
[1773241938134,0.00144,70314.0,70294.0,0.0014226]
[1773241939290,0.0711106,70313.0,70294.0,0.0014226]
[1773241939999,0.00144,70312.0,70294.0,0.0014226]
[1773241940475,0.00144,70312.0,70289.0,0.00148]
[1773241940663,0.0713167,70313.0,70285.0,0.00148]
[1773241940808,0.0713167,70313.0,70285.0,0.08591175]
[1773241941008,0.00144,70312.0,70285.0,0.08591175]
[1773241941205,0.07111363,70310.0,70286.0,0.07113792]
[1773241941421,0.07111363,70310.0,70287.0,0.08443175]
[1773241942052,0.07131973,70310.0,70287.0,0.08443175]
[1773241942779,0.07131973,70310.0,70291.0,0.08443175]
[1773241942780,0.0002061,70310.0,70291.0,0.08443175]
[1773241942979,0.07110562,70318.0,70291.0,0.08443175]
[1773241943181,0.00144,70320.0,70293.0,0.08443175]
[1773241943330,0.07110453,70319.0,70295.0,0.08443175]
[1773241944156,0.07110453,70319.0,70297.0,0.08443175]
[1773241944358,0.00144,70320.0,70297.0,0.08443175]
[1773241944558,0.07153707,70323.0,70297.0,0.08443175]
[1773241945583,0.07153707,70323.0,70299.0,0.08443175]
[1773241945787,0.00144,70322.0,70299.0,0.08443175]
[1773241947578,0.18919266,70354.0,70299.0,0.08443175]
[1773241947579,0.0004365,70348.0,70312.0,0.10943175]
[1773241947771,0.0004365,70348.0,70321.0,0.10943175]
[1773241947992,0.07154867,70355.0,70322.0,0.00148]
[1773241948165,0.07154867,70355.0,70323.0,0.10943175]
[1773241948311,0.00048,70355.0,70324.0,0.00148]
[1773241948520,0.00048,70355.0,70325.0,0.11091175]
[1773241948723,0.00048,70355.0,70327.0,0.10943175]
[1773241949339,0.00048,70355.0,70328.0,0.07109543]
[1773241949541,0.00048,70355.0,70329.0,0.10943175]
[1773241951104,0.0715484,70355.0,70329.0,0.10943175]
[1773241951306,0.00048,70355.0,70330.0,0.00148]
[1773241951508,0.00048,70355.0,70332.0,0.12605757]
[1773241953137,0.07154835,70355.0,70332.0,0.12605757]
[1773241953307,0.00048,70355.0,70332.0,0.12605757]
[1773241953509,0.07106916,70354.0,70330.0,0.03591383]
[1773241953716,0.07106916,70354.0,70313.0,0.06302879]
[1773241953717,0.00148,70353.0,70313.0,0.06302879]
[1773241954026,0.04260888,70352.0,70315.0,0.04599862]
[1773241954228,0.00148,70351.0,70315.0,0.04599862]
[1773241954429,0.07154916,70355.0,70314.0,0.00148]
[1773241954430,0.00048,70355.0,70320.0,0.12750884]
[1773241954638,0.00048,70355.0,70321.0,0.04599862]
[1773241954836,0.07154832,70355.0,70323.0,0.04599862]
[1773241955321,0.07154832,70355.0,70324.0,0.00148]
[1773241955546,0.12750884,70350.0,70325.0,0.00148]
[1773241955796,0.04260888,70348.0,70315.0,0.07110775]
[1773241955916,0.04260888,70348.0,70316.0,0.00148]
[1773241956122,0.04260888,70348.0,70317.0,0.00148]
[1773241957372,0.00142152,70347.0,70317.0,0.00148]
[1773241957587,0.00142152,70347.0,70311.0,0.34786568]
[1773241957588,0.07107724,70346.0,70311.0,0.27675407]
[1773241957787,0.07107724,70346.0,70301.0,0.05149113]
[1773241957788,0.12750884,70330.0,70301.0,0.05149113]
[1773241958012,0.00148,70329.0,70296.0,0.27675407]
[1773241958213,0.12099347,70346.0,70297.0,0.00148]
[1773241958214,0.00148,70328.0,70297.0,0.00148]
[1773241958337,0.00148,70327.0,70277.0,0.00162294]
[1773241958539,0.25821377,70299.0,70270.0,1e-08]
[1773241958786,0.12750884,70280.0,70248.0,0.00148]
[1773241958990,0.05135623,70279.0,70250.0,0.00148]
[1773241959190,0.12750884,70270.0,70253.0,1e-08]
[1773241959366,0.25501768,70290.0,70238.0,0.0004755]
[1773241959367,0.00144,70269.0,70238.0,0.0004755]
[1773241959569,0.04260888,70277.0,70219.0,0.04599862]
[1773241959570,0.1725919,70258.0,70219.0,0.04599862]
[1773241959739,0.1725919,70258.0,70224.0,0.04674982]
[1773241959975,0.1725919,70258.0,70222.0,0.00148]
[1773241959976,0.00144,70257.0,70222.0,0.00148]
[1773241960253,0.07116525,70261.0,70232.0,0.292659]
[1773241960386,0.07116525,70261.0,70222.0,0.00148]
[1773241960387,0.00144,70258.0,70222.0,0.04822982]
[1773241960769,0.12750884,70260.0,70222.0,0.04822982]
[1773241960971,0.27421958,70267.0,70230.0,0.12750884]
[1773241961210,0.00144,70266.0,70231.0,0.04674982]
[1773241961386,0.00144,70266.0,70233.0,0.04674982]
[1773241961602,0.00144,70266.0,70234.0,0.00148]
[1773241961799,0.07115918,70265.0,70235.0,0.07118957]
[1773241961969,0.07115918,70265.0,70235.0,0.04732491]
[1773241962177,0.07115918,70265.0,70235.0,0.11999448]
[1773241962420,0.07115918,70265.0,70235.0,0.07266957]
[1773241962624,0.00144,70264.0,70236.0,0.04732491]
[1773241963364,0.07115918,70265.0,70236.0,0.04732491]
[1773241963651,0.00144,70263.0,70236.0,0.04732491]
[1773241963845,0.00144,70263.0,70237.0,0.07118755]
[1773241964020,0.00148,70266.0,70238.0,0.04508477]
[1773241964218,0.07115449,70270.0,70238.0,0.04508477]
[1773241964411,0.00148,70269.0,70238.0,0.04508477]
[1773241964812,0.00148,70277.0,70241.0,0.04508477]
[1773241965026,0.12252115,70280.0,70241.0,0.04508477]
[1773241965027,0.00148,70278.0,70241.0,0.04508477]
[1773241965596,0.00148,70279.0,70243.0,0.04508477]
[1773241965804,0.07114602,70278.0,70244.0,0.07118045]
[1773241966004,0.00148,70277.0,70245.0,0.05292951]
[1773241966331,0.00148,70277.0,70246.0,0.00148]
[1773241966530,0.00148,70277.0,70247.0,0.05144951]
[1773241966752,0.00148,70276.0,70247.0,0.05144951]
[1773241967459,0.00148,70276.0,70248.0,0.00148]
[1773241967614,0.00148,70275.0,70249.0,0.05144951]
[1773241968213,5.769e-05,70275.0,70250.0,0.07117437]
[1773241968429,5.769e-05,70275.0,70273.0,0.00142302]
[1773241968635,5.769e-05,70275.0,70251.0,0.05144951]
[1773241969369,0.12750884,70270.0,70236.0,0.05164951]
[1773241969666,0.12750884,70261.0,70236.0,0.0002]
[1773241969821,0.12898884,70260.0,70236.0,0.0002]
[1773241970029,0.03234816,70269.0,70236.0,0.07138812]
[1773241970229,0.03234816,70266.0,70236.0,0.0002]
[1773241970567,0.002,70257.0,70236.0,0.0002]
[1773241970870,0.12750884,70250.0,70228.0,0.0002]
[1773241971171,0.04993272,70249.0,70228.0,0.0002]
[1773241971426,0.12750884,70231.0,70199.0,0.28300362]
[1773241971588,0.12750884,70220.0,70197.0,0.05144951]
[1773241971745,0.16829947,70226.0,70187.0,0.08988758]
[1773241971746,0.02891962,70209.0,70187.0,0.01865]
[1773241971948,0.12750884,70220.0,70188.0,0.07123724]
[1773241972173,0.02891962,70218.0,70187.0,0.01865]
[1773241972376,0.02891962,70205.0,70187.0,0.00388]
[1773241972553,0.15642846,70200.0,70180.0,0.02983091]
[1773241972757,0.00148,70199.0,70180.0,0.02983091]
[1773241972963,0.02891962,70200.0,70180.0,0.02983091]
[1773241972964,0.00148,70198.0,70180.0,0.02983091]
[1773241973614,0.00017945,70197.0,70180.0,0.02983091]
[1773241973812,0.00017945,70197.0,70180.0,0.10107607]
[1773241973995,0.00148,70196.0,70180.0,0.02983091]
[1773241974195,5.604e-05,70196.0,70180.0,0.02983091]
[1773241974518,5.604e-05,70196.0,70156.0,0.07126974]
[1773241974519,0.12750884,70190.0,70156.0,0.07126974]
[1773241974720,0.12750884,70170.0,70136.0,0.07129006]
[1773241974866,0.17084,70182.0,70137.0,0.02401697]
[1773241975090,0.02891962,70180.0,70137.0,0.02401697]
[1773241975289,0.03234816,70176.0,70135.0,0.0020975]
[1773241975491,0.02891962,70158.0,70135.0,0.0006175]
[1773241975717,0.00148,70157.0,70135.0,0.07190756]
[1773241975917,0.02891962,70176.0,70135.0,0.07190756]
[1773241975918,0.02891962,70175.0,70135.0,0.07190756]
[1773241976128,0.02891962,70175.0,70130.0,0.01124]
[1773241976129,0.02891962,70144.0,70108.0,0.07131824]
[1773241976325,0.07128396,70142.0,70103.0,0.36635821]
[1773241976573,0.07128396,70142.0,70107.0,0.07389384]
[1773241976736,0.00148,70141.0,70107.0,0.07389384]
[1773241977497,0.00148,70141.0,70103.0,0.29503512]
[1773241977498,0.12750884,70140.0,70088.0,0.01945757]
[1773241977733,0.07128396,70142.0,70090.0,0.12750884]
[1773241977734,0.02891962,70139.0,70090.0,0.12750884]
[1773241977999,0.07128396,70142.0,70091.0,0.00148]
[1773241978198,0.03039962,70138.0,70092.0,0.00148]
[1773241978399,0.03039962,70138.0,70084.0,0.01945757]
[1773241978400,0.02891962,70136.0,70093.0,0.00148]
[1773241978604,0.02891962,70134.0,70094.0,0.00144]
[1773241978775,0.02891962,70134.0,70090.0,0.12750884]
[1773241978776,0.00035844,70135.0,70096.0,0.01778409]
[1773241978960,0.00148,70134.0,70096.0,0.01778409]
[1773241979204,0.00112192,70134.0,70095.0,0.0014]
[1773241979562,0.02891962,70133.0,70096.0,0.00144]
[1773241979763,0.00148,70132.0,70096.0,0.00144]
[1773241980102,0.05053742,70131.0,70096.0,0.00144]
[1773241980317,0.07129616,70130.0,70097.0,0.07132972]
[1773241980469,0.00148,70129.0,70097.0,0.07132972]
[1773241980666,0.00148,70128.0,70097.0,0.07132972]
[1773241980895,0.04905742,70129.0,70097.0,0.07132972]
[1773241981303,0.00148,70128.0,70097.0,0.07132972]
[1773241981511,0.00148,70127.0,70097.0,0.07132972]
[1773241981815,0.00144,70129.0,70097.0,0.07132972]
[1773241981984,0.000179,70128.0,70097.0,0.07132972]
[1773241982338,0.02891962,70125.0,70094.0,0.07133216]
[1773241983010,0.07130023,70126.0,70094.0,0.07133216]
[1773241983212,0.000179,70128.0,70094.0,0.07133216]
[1773241983410,0.00136,70125.0,70094.0,0.07133216]
[1773241983615,0.07129882,70128.0,70094.0,0.07133216]
[1773241983792,0.07129162,70135.0,70094.0,0.07133216]
[1773241984110,0.07128855,70138.0,70094.0,0.07133216]
[1773241984321,0.07129006,70136.0,70094.0,0.07133216]
[1773241984566,0.07129006,70136.0,70093.0,0.07133379]
[1773241984567,0.05447521,70135.0,70093.0,0.07133379]
[1773241984694,0.05587521,70135.0,70085.0,0.00144]
[1773241985034,0.03374816,70135.0,70084.0,0.07278295]
[1773241985231,0.05447521,70135.0,70084.0,0.07278295]
[1773241985395,0.05376288,70133.0,70084.0,0.07278295]
[1773241985594,0.05376288,70133.0,70100.0,0.00048]
[1773241986524,0.12399545,70132.0,70101.0,0.07132565]
[1773241986715,0.0014,70131.0,70101.0,0.07132565]
[1773241986927,0.05270132,70131.0,70101.0,0.07132565]
[1773241987115,0.07129413,70132.0,70100.0,0.0718062]
[1773241987116,0.0014,70130.0,70100.0,0.0718062]
[1773241987284,0.0014,70129.0,70100.0,0.0718062]
[1773241987490,0.0014,70129.0,70100.0,0.00048]
[1773241987491,0.00053744,70128.0,70100.0,0.00048]
[1773241987702,0.05130132,70127.0,70100.0,0.07180588]
[1773241988103,0.00053744,70128.0,70100.0,0.07180588]
[1773241988318,0.00144,70127.0,70100.0,0.07180588]
[1773241988520,0.07274023,70126.0,70100.0,0.07180588]
[1773241989158,0.0499179,70125.0,70100.0,0.00048]
[1773241989369,0.00144,70124.0,70100.0,0.07180617]
[1773241989566,0.21037773,70126.0,70100.0,0.07180617]
[1773241989567,0.07130023,70126.0,70101.0,0.00132]
[1773241989852,0.07130023,70129.0,70101.0,0.00132]
[1773241990053,0.00053744,70128.0,70101.0,0.00132]
[1773241990297,0.04755848,70127.0,70100.0,0.07180617]
[1773241990492,0.07130023,70126.0,70100.0,0.07180617]
[1773241990649,0.04755848,70125.0,70100.0,0.07180617]
[1773241990857,0.04755848,70125.0,70100.0,0.07180614]
[1773241991051,0.04755848,70125.0,70100.0,0.00048]
[1773241991284,0.04755848,70125.0,70100.0,0.07180611]
[1773241991836,0.04755848,70125.0,70100.0,0.00048]
[1773241992042,0.30035807,70119.0,70051.0,0.34260363]
[1773241992166,0.02891962,70118.0,70080.0,0.36638195]
[1773241992352,0.00144,70117.0,70080.0,0.36638195]
[1773241992557,0.07131039,70116.0,70080.0,0.36638195]
[1773241992757,0.07275039,70116.0,70080.0,0.36638195]
[1773241993171,0.07131039,70116.0,70080.0,0.36638195]
[1773241993369,0.00144,70115.0,70080.0,0.36638195]
[1773241993679,0.07131039,70116.0,70080.0,0.36638195]
[1773241993680,0.07184783,70116.0,70081.0,0.0014]
[1773241993877,0.00053744,70116.0,70081.0,0.0014]
[1773241994283,0.07130429,70122.0,70081.0,0.0014]
[1773241994482,0.07130633,70120.0,70082.0,0.07134499]
[1773241995526,0.07278633,70121.0,70082.0,0.07134499]
[1773241995677,0.07130633,70120.0,70082.0,0.07134499]
[1773241996730,0.07130633,70122.0,70082.0,0.07134499]
[1773241996941,0.00022001,70132.0,70083.0,0.480004]
[1773241997102,0.00148,70131.0,70083.0,0.467062]
[1773241997302,0.00148,70131.0,70083.0,0.208127]
[1773241997952,0.00148,70130.0,70083.0,0.208127]
[1773241998159,0.04066655,70129.0,70084.0,0.00144]
[1773241998476,0.04066655,70129.0,70085.0,0.00144]
[1773241998625,0.00022001,70132.0,70086.0,0.07134092]
[1773241998826,0.07277533,70131.0,70086.0,0.07134092]
[1773241999029,0.00022001,70132.0,70090.0,0.15]
[1773241999475,0.00022001,70132.0,70076.0,0.0713511]
[1773241999476,0.04066655,70119.0,70076.0,0.0713511]
[1773241999673,0.07273514,70131.0,70076.0,0.0713511]
[1773241999674,0.04066655,70109.0,70076.0,0.0713511]
[1773241999847,0.04067926,70107.0,70076.0,0.0713511]
[1773242000050,0.04067926,70107.0,70077.0,0.00144]
[1773242000289,0.04067926,70107.0,70075.0,0.07155141]
[1773242000290,0.04067926,70099.0,70075.0,0.07135207]
[1773242000486,0.00144,70098.0,70075.0,0.07135207]
[1773242000639,0.04067926,70095.0,70075.0,1e-08]
[1773242001554,0.04067926,70095.0,70066.0,0.07136128]
[1773242002545,0.04067926,70095.0,70063.0,0.07136128]
[1773242002546,0.03046047,70088.0,70045.0,0.0009636]
[1773242002752,0.07133787,70089.0,69832.0,0.3953636]
[1773242002753,0.03046047,70058.0,70025.0,0.38049795]
[1773242002957,0.00741,70059.0,70026.0,0.00144]
[1773242003302,0.00741,70059.0,70027.0,0.00144]
[1773242004017,0.00741,70059.0,70022.0,0.07140307]
[1773242004018,0.02187506,70058.0,70020.0,0.3664429]
[1773242004165,0.02043506,70058.0,70021.0,0.00148]
[1773242004558,0.07137045,70057.0,70020.0,0.07140778]
[1773242004861,0.07137045,70057.0,70019.0,0.07140714]
[1773242004862,0.02043506,70049.0,70019.0,0.07140714]
[1773242005064,0.12828915,70040.0,70018.0,0.07140714]
[1773242005266,0.02043506,70045.0,70018.0,0.07140714]